fUSD/lending_fUSD_20250930
["ID","MTS","AMOUNT","RATE_DAILY","PERIOD"]
[388554110,1759240300262,-723.07,0.00019726,2]
[388554111,1759240300272,-500.0,0.00019726,2]
[388554112,1759240300282,-798.07,0.00019726,2]
[388554113,1759240300292,-500.0,0.00019726,2]
[388554114,1759240300302,-500.0,0.00019726,2]
[388554115,1759240300316,-699.79,0.00019726,2]
[388554116,1759240300325,-746.04,0.00019726,2]
[388554117,1759240300334,-534.54,0.00019726,2]
[388554118,1759240300343,-500.0,0.00019726,2]
[388554119,1759240300352,-500.0,0.00019726,2]
[388554120,1759240300362,-500.0,0.00019726,2]
[388554121,1759240300371,-500.0,0.00019726,2]
[388554122,1759240300380,-500.0,0.00019726,2]
[388554123,1759240300390,-500.0,0.00019726,2]
[388554124,1759240300399,-500.0,0.00019726,2]
[388554125,1759240300408,-1901.3,0.00019726,2]
[388554126,1759240300418,-1901.3,0.00019726,2]
[388554127,1759240300427,-500.0,0.00019726,2]
[388554128,1759240300436,-996.63,0.00019726,2]
[388554129,1759240300446,-500.0,0.00019726,2]
[388554130,1759240300455,-500.0,0.00019726,2]
[388554131,1759240300465,-500.0,0.00019726,2]
[388554132,1759240300474,-500.0,0.00019726,2]
[388554133,1759240300486,-511.59049749,0.00019726,2]
[388554134,1759240300495,-500.0,0.00019726,2]
[388554135,1759240300505,-500.0,0.00019726,2]
[388554136,1759240300515,-500.0,0.00019726,2]
[388554137,1759240300525,-547.29,0.00019726,2]
[388554138,1759240300534,-547.29,0.00019726,2]
[388554139,1759240300543,-500.0,0.00019726,2]
[388554140,1759240300553,-500.0,0.00019726,2]
[388554141,1759240300564,-500.0,0.00019726,2]
[388554142,1759240300573,-500.0,0.00019726,2]
[388554143,1759240300583,-500.0,0.00019726,2]
[388554144,1759240300592,-500.0,0.00019726,2]
[388554145,1759240300601,-500.0,0.00019726,2]
[388554146,1759240300612,-159.43036958,0.00019726,2]
[388554147,1759240300622,-500.0,0.00019726,2]
[388554148,1759240300632,-822.45,0.00019726,2]
[388554149,1759240300641,-822.45,0.00019726,2]
[388554150,1759240300651,-500.0,0.00019726,2]
[388554151,1759240300661,-469.24934435,0.00019726,2]
[388554152,1759240300671,-500.0,0.00019726,2]
[388554153,1759240300681,-680.9,0.00019726,2]
[388554154,1759240300691,-500.0,0.00019726,2]
[388554155,1759240300701,-673.91,0.00019726,2]
[388554156,1759240300710,-500.0,0.00019726,2]
[388554157,1759240300721,-500.0,0.00019726,2]
[388554158,1759240300730,-500.0,0.00019726,2]
[388554159,1759240300739,-500.0,0.00019726,2]
[388554160,1759240300748,-500.0,0.00019726,2]
[388554161,1759240300758,-1312.12,0.00019726,2]
[388554162,1759240300767,-544.11,0.00019726,2]
[388554163,1759240300776,-500.0,0.00019726,2]
[388554164,1759240300785,-500.0,0.00019726,2]
[388554165,1759240300795,-500.0,0.00019726,2]
[388554166,1759240300804,-676.58,0.00019726,2]
[388554167,1759240300816,-500.0,0.00019726,2]
[388554168,1759240300826,-500.0,0.00019726,2]
[388554169,1759240300836,-500.0,0.00019726,2]
[388554170,1759240300847,-820.32,0.00019726,2]
[388554171,1759240300856,-500.0,0.00019726,2]
[388554172,1759240300866,-500.0,0.00019726,2]
[388554173,1759240300875,-500.0,0.00019726,2]
[388554174,1759240300885,-500.0,0.00019726,2]
[388554175,1759240300895,-205.53410212,0.00019726,2]
[388554176,1759240300905,-300.0,0.00019726,2]
[388554177,1759240300915,-527.54,0.00019726,2]
[388554178,1759240300924,-500.0,0.00019726,2]
[388554179,1759240300934,-772.08,0.00019726,2]
[388554180,1759240300943,-985.0,0.00019726,2]
[388554181,1759240300952,-500.0,0.00019726,2]
[388554182,1759240300962,-1196.77,0.00019726,2]
[388554183,1759240300971,-516.33811483,0.00019726,2]
[388554184,1759240300980,-323.59341367,0.00019726,2]
[388554185,1759240300989,-1307.17,0.00019726,2]
[388554186,1759240300998,-1307.17,0.00019726,2]
[388554187,1759240301007,-500.0,0.00019726,2]
[388554188,1759240301016,-500.0,0.00019726,2]
[388554189,1759240301025,-646.8,0.00019726,2]
[388554190,1759240301035,-619.85,0.00019726,2]
[388554191,1759240301045,-500.0,0.00019726,2]
[388554192,1759240301054,-500.0,0.00019726,2]
[388554193,1759240301064,-500.0,0.00019726,2]
[388554194,1759240301074,-500.0,0.00019726,2]
[388554195,1759240301083,-500.0,0.00019726,2]
[388554196,1759240301092,-155.96193021,0.00019726,2]
[388554197,1759240301101,-500.0,0.00019726,2]
[388554198,1759240301110,-500.0,0.00019726,2]
[388554199,1759240301119,-500.0,0.00019726,2]
[388554200,1759240301128,-500.0,0.00019726,2]
[388554201,1759240301138,-551.65,0.00019726,2]
[388554202,1759240301147,-500.0,0.00019726,2]
[388554203,1759240301156,-500.0,0.00019726,2]
[388554204,1759240301165,-500.0,0.00019726,2]
[388554205,1759240301174,-2533.5,0.00019726,2]
[388554206,1759240301183,-500.0,0.00019726,2]
[388554207,1759240301193,-1570.81,0.00019726,2]
[388554208,1759240301204,-500.0,0.00019726,2]
[388554209,1759240301214,-500.0,0.00019726,2]
[388554210,1759240301222,-500.0,0.00019726,2]
[388554211,1759240301234,-500.0,0.00019726,2]
[388554212,1759240301243,-500.0,0.00019726,2]
[388554213,1759240301253,-500.0,0.00019726,2]
[388554214,1759240301261,-500.0,0.00019726,2]
[388554215,1759240301271,-500.0,0.00019726,2]
[388554216,1759240301280,-500.0,0.00019726,2]
[388554217,1759240301289,-951.58,0.00019726,2]
[388554218,1759240301299,-1000.83,0.00019726,2]
[388554219,1759240301308,-500.0,0.00019726,2]
[388554220,1759240301319,-500.0,0.00019726,2]
[388554221,1759240301328,-500.0,0.00019726,2]
[388554222,1759240301338,-500.0,0.00019726,2]
[388554223,1759240301347,-500.0,0.00019726,2]
[388554224,1759240301356,-500.0,0.00019726,2]
[388554225,1759240301365,-500.0,0.00019726,2]
[388554226,1759240301374,-980.47,0.00019726,2]
[388554227,1759240301383,-500.0,0.00019726,2]
[388554228,1759240301392,-500.0,0.00019726,2]
[388554229,1759240301402,-500.0,0.00019726,2]
[388554230,1759240301412,-500.0,0.00019726,2]
[388554231,1759240301422,-500.0,0.00019726,2]
[388554232,1759240301431,-620.85,0.00019726,2]
[388554233,1759240301440,-596.97,0.00019726,2]
[388554234,1759240301450,-945.04,0.00019726,2]
[388554235,1759240301459,-500.0,0.00019726,2]
[388554236,1759240301469,-500.0,0.00019726,2]
[388554237,1759240301478,-500.0,0.00019726,2]
[388554238,1759240301487,-1506.46,0.00019726,2]
[388554239,1759240301498,-1892.16,0.00019726,2]
[388554240,1759240301508,-1813.32,0.00019726,2]
[388554241,1759240301518,-500.0,0.00019726,2]
[388554242,1759240301527,-500.0,0.00019726,2]
[388554243,1759240301536,-500.0,0.00019726,2]
[388554244,1759240301546,-554.41,0.00019726,2]
[388554245,1759240301556,-500.0,0.00019726,2]
[388554246,1759240301566,-500.0,0.00019726,2]
[388554247,1759240301576,-500.0,0.00019726,2]
[388554248,1759240301585,-500.0,0.00019726,2]
[388554249,1759240301594,-151.0,0.00019726,2]
[388554250,1759240301604,-500.0,0.00019726,2]
[388554251,1759240301613,-1125.41,0.00019726,2]
[388554252,1759240301622,-500.0,0.00019726,2]
[388554253,1759240301633,-151.0,0.00019726,2]
[388554254,1759240301643,-500.0,0.00019726,2]
[388554255,1759240301653,-500.0,0.00019726,2]
[388554256,1759240301661,-819.5,0.00019726,2]
[388554257,1759240301670,-2802.89,0.00019726,2]
[388554258,1759240301679,-500.0,0.00019726,2]
[388554259,1759240301688,-1040.32,0.00019726,2]
[388554260,1759240301698,-1580.78,0.00019726,2]
[388554261,1759240301708,-500.0,0.00019726,2]
[388554262,1759240301718,-500.0,0.00019726,2]
[388554263,1759240301727,-500.0,0.00019726,2]
[388554264,1759240301737,-500.0,0.00019726,2]
[388554265,1759240301746,-500.0,0.00019726,2]
[388554266,1759240301755,-151.0,0.00019726,2]
[388554267,1759240301765,-1936.29,0.00019726,2]
[388554268,1759240301774,-500.0,0.00019726,2]
[388554269,1759240301783,-762.14,0.00019726,2]
[388554270,1759240301793,-151.0,0.00019726,2]
[388554271,1759240301802,-500.0,0.00019726,2]
[388554272,1759240301813,-517.44,0.00019726,2]
[388554273,1759240301822,-804.01,0.00019726,2]
[388554274,1759240301832,-500.0,0.00019726,2]
[388554275,1759240301841,-151.0,0.00019726,2]
[388554276,1759240301851,-500.0,0.00019726,2]
[388554277,1759240301860,-862.02,0.00019726,2]
[388554278,1759240301870,-500.0,0.00019726,2]
[388554279,1759240301879,-500.0,0.00019726,2]
[388554280,1759240301888,-734.2,0.00019726,2]
[388554281,1759240301897,-2536.15,0.00019726,2]
[388554282,1759240301906,-866.59,0.00019726,2]
[388554283,1759240301916,-835.4,0.00019726,2]
[388554284,1759240301926,-151.0,0.00019726,2]
[388554285,1759240301935,-718.03,0.00019726,2]
[388554286,1759240301944,-1365.92,0.00019726,2]
[388554287,1759240301954,-500.0,0.00019726,2]
[388554288,1759240301963,-819.73,0.00019726,2]
[388554289,1759240301972,-500.0,0.00019726,2]
[388554290,1759240301982,-500.0,0.00019726,2]
[388554291,1759240301992,-906.15,0.00019726,2]
[388554292,1759240302001,-716.83,0.00019726,2]
[388554293,1759240302011,-338.8847235,0.00019726,2]
[388554294,1759240302020,-500.0,0.00019726,2]
[388554295,1759240302029,-500.0,0.00019726,2]
[388554296,1759240302039,-1159.21,0.00019726,2]
[388554297,1759240302048,-500.0,0.00019726,2]
[388554298,1759240302057,-500.0,0.00019726,2]
[388554299,1759240302067,-500.0,0.00019726,2]
[388554300,1759240302076,-500.0,0.00019726,2]
[388554301,1759240302088,-500.0,0.00019726,2]
[388554302,1759240302097,-500.0,0.00019726,2]
[388554303,1759240302106,-500.0,0.00019726,2]
[388554304,1759240302116,-745.58,0.00019726,2]
[388554305,1759240302126,-500.0,0.00019726,2]
[388554306,1759240302136,-500.0,0.00019726,2]
[388554307,1759240302145,-1006.35,0.00019726,2]
[388554308,1759240302155,-401.37105533,0.00019726,2]
[388554309,1759240302164,-500.0,0.00019726,2]
[388554310,1759240302173,-1193.9,0.00019726,2]
[388554311,1759240302183,-500.0,0.00019726,2]
[388554312,1759240302192,-151.0,0.00019726,2]
[388554313,1759240302202,-500.0,0.00019726,2]
[388554314,1759240302211,-843.81,0.00019726,2]
[388554315,1759240302221,-151.0,0.00019726,2]
[388554316,1759240302233,-500.0,0.00019726,2]
[388554317,1759240302243,-500.0,0.00019726,2]
[388554318,1759240302252,-500.0,0.00019726,2]
[388554319,1759240302262,-500.0,0.00019726,2]
[388554320,1759240302272,-500.0,0.00019726,2]
[388554321,1759240302283,-500.0,0.00019726,2]
[388554322,1759240302293,-787.49,0.00019726,2]
[388554323,1759240302302,-1328.48,0.00019726,2]
[388554324,1759240302315,-500.0,0.00019726,2]
[388554325,1759240302325,-595.3,0.00019726,2]
[388554326,1759240302335,-561.38,0.00019726,2]
[388554327,1759240302344,-356.55556513,0.00019726,2]
[388554328,1759240302354,-500.0,0.00019726,2]
[388554329,1759240302364,-2987.59,0.00019726,2]
[388554330,1759240302373,-612.1,0.00019726,2]
[388554331,1759240302383,-500.0,0.00019726,2]
[388554332,1759240302393,-538.01,0.00019726,2]
[388554333,1759240302403,-500.0,0.00019726,2]
[388554334,1759240302412,-500.0,0.00019726,2]
[388554335,1759240302422,-174.33644408,0.00019726,2]
[388554336,1759240302431,-528.03,0.00019726,2]
[388554337,1759240302441,-705.1,0.00019726,2]
[388554338,1759240302451,-500.0,0.00019726,2]
[388554339,1759240302460,-500.0,0.00019726,2]
[388554340,1759240302469,-500.0,0.00019726,2]
[388554341,1759240302478,-751.61,0.00019726,2]
[388554342,1759240302488,-519.96,0.00019726,2]
[388554343,1759240302498,-500.0,0.00019726,2]
[388554344,1759240302507,-521.64,0.00019726,2]
[388554345,1759240302516,-500.0,0.00019726,2]
[388554346,1759240302526,-662.66,0.00019726,2]
[388554347,1759240302535,-500.0,0.00019726,2]
[388554348,1759240302546,-273.54744722,0.00019726,2]
[388554349,1759240302555,-500.0,0.00019726,2]
[388554350,1759240302566,-574.00528452,0.00019726,2]
[388554351,1759240302575,-500.0,0.00019726,2]
[388554352,1759240302584,-1191.76,0.00019726,2]
[388554353,1759240302594,-500.0,0.00019726,2]
[388554354,1759240302603,-830.02,0.00019726,2]
[388554355,1759240302612,-500.0,0.00019726,2]
[388554356,1759240302622,-500.0,0.00019726,2]
[388554357,1759240302632,-1407.81,0.00019726,2]
[388554358,1759240302642,-500.0,0.00019726,2]
[388554359,1759240302652,-1632.14,0.00019726,2]
[388554360,1759240302661,-2537.43,0.00019726,2]
[388554361,1759240302670,-2431.7,0.00019726,2]
[388554362,1759240302680,-500.0,0.00019726,2]
[388554363,1759240302690,-500.0,0.00019726,2]
[388554364,1759240302700,-500.0,0.00019726,2]
[388554365,1759240302712,-500.0,0.00019726,2]
[388554366,1759240302726,-500.0,0.00019726,2]
[388554367,1759240302737,-1277.63,0.00019726,2]
[388554368,1759240302747,-696.93,0.00019726,2]
[388554369,1759240302757,-890.61,0.00019726,2]
[388554370,1759240302766,-500.0,0.00019726,2]
[388554371,1759240302776,-500.0,0.00019726,2]
[388554372,1759240302786,-312.48414915,0.00019726,2]
[388554373,1759240302796,-500.0,0.00019726,2]
[388554374,1759240302805,-500.0,0.00019726,2]
[388554375,1759240302816,-500.0,0.00019726,2]
[388554376,1759240302826,-500.0,0.00019726,2]
[388554377,1759240302836,-500.0,0.00019726,2]
[388554378,1759240302845,-500.0,0.00019726,2]
[388554379,1759240302854,-500.0,0.00019726,2]
[388554380,1759240302863,-1546.9,0.00019726,2]
[388554381,1759240302873,-500.0,0.00019726,2]
[388554382,1759240302883,-500.0,0.00019726,2]
[388554383,1759240302892,-500.0,0.00019726,2]
[388554384,1759240302901,-767.27,0.00019726,2]
[388554385,1759240302911,-500.0,0.00019726,2]
[388554386,1759240302921,-3185.15,0.00019726,2]
[388554387,1759240302931,-3256.72,0.00019726,2]
[388554388,1759240302940,-1019.43,0.00019726,2]
[388554389,1759240302950,-628.31,0.00019726,2]
[388554390,1759240302959,-500.0,0.00019726,2]
[388554391,1759240302970,-500.0,0.00019726,2]
[388554392,1759240302979,-599.93,0.00019726,2]
[388554393,1759240302991,-500.0,0.00019726,2]
[388554394,1759240303000,-573.86,0.00019726,2]
[388554395,1759240303011,-500.0,0.00019726,2]
[388554396,1759240303022,-500.0,0.00019726,2]
[388554397,1759240303031,-500.0,0.00019726,2]
[388554398,1759240303042,-500.0,0.00019726,2]
[388554399,1759240303051,-500.0,0.00019726,2]
[388554400,1759240303061,-500.0,0.00019726,2]
[388554401,1759240303071,-500.0,0.00019726,2]
[388554402,1759240303079,-500.0,0.00019726,2]
[388554403,1759240303088,-500.0,0.00019726,2]
[388554404,1759240303098,-500.0,0.00019726,2]
[388554405,1759240303107,-1643.07,0.00019726,2]
[388554406,1759240303116,-1654.09,0.00019726,2]
[388554407,1759240303126,-1125.03,0.00019726,2]
[388554408,1759240303136,-500.0,0.00019726,2]
[388554409,1759240303146,-500.0,0.00019726,2]
[388554410,1759240303155,-500.0,0.00019726,2]
[388554411,1759240303164,-500.0,0.00019726,2]
[388554412,1759240303173,-500.0,0.00019726,2]
[388554413,1759240303184,-570.69,0.00019726,2]
[388554414,1759240303193,-500.0,0.00019726,2]
[388554415,1759240303202,-500.0,0.00019726,2]
[388554416,1759240303211,-780.09,0.00019726,2]
[388554417,1759240303221,-645.06,0.00019726,2]
[388554418,1759240303230,-2221.26,0.00019726,2]
[388554419,1759240303242,-1429.66,0.00019726,2]
[388554420,1759240303251,-151.0,0.00019726,2]
[388554421,1759240303260,-1147.27,0.00019726,2]
[388554422,1759240303270,-500.0,0.00019726,2]
[388554423,1759240303279,-500.0,0.00019726,2]
[388554424,1759240303288,-155.03126903,0.00019726,2]
[388554425,1759240303297,-500.0,0.00019726,2]
[388554426,1759240303306,-677.04,0.00019726,2]
[388554427,1759240303316,-1422.36,0.00019726,2]
[388554428,1759240303325,-500.0,0.00019726,2]
[388554429,1759240303335,-2005.31,0.00019726,2]
[388554430,1759240303344,-861.63,0.00019726,2]
[388554431,1759240303353,-825.73,0.00019726,2]
[388554432,1759240303363,-500.0,0.00019726,2]
[388554433,1759240303374,-980.73,0.00019726,2]
[388554434,1759240303383,-500.0,0.00019726,2]
[388554435,1759240303393,-1146.39,0.00019726,2]
[388554436,1759240303402,-1482.77,0.00019726,2]
[388554437,1759240303411,-503.95,0.00019726,2]
[388554438,1759240303420,-500.0,0.00019726,2]
[388554439,1759240303430,-500.0,0.00019726,2]
[388554440,1759240303441,-500.0,0.00019726,2]
[388554441,1759240303451,-427.68165922,0.00019726,2]
[388554442,1759240303460,-500.0,0.00019726,2]
[388554443,1759240303470,-500.0,0.00019726,2]
[388554444,1759240303479,-500.0,0.00019726,2]
[388554445,1759240303490,-500.0,0.00019726,2]
[388554446,1759240303501,-500.0,0.00019726,2]
[388554447,1759240303511,-500.0,0.00019726,2]
[388554448,1759240303521,-1642.32,0.00019726,2]
[388554449,1759240303531,-555.2,0.00019726,2]
[388554450,1759240303540,-500.0,0.00019726,2]
[388554451,1759240303550,-500.0,0.00019726,2]
[388554452,1759240303560,-519.38,0.00019726,2]
[388554453,1759240303570,-500.0,0.00019726,2]
[388554454,1759240303579,-502.53,0.00019726,2]
[388554455,1759240303588,-500.0,0.00019726,2]
[388554456,1759240303597,-500.0,0.00019726,2]
[388554457,1759240303606,-500.0,0.00019726,2]
[388554458,1759240303615,-500.0,0.00019726,2]
[388554459,1759240303624,-1407.34,0.00019726,2]
[388554460,1759240303633,-1006.6,0.00019726,2]
[388554461,1759240303645,-500.0,0.00019726,2]
[388554462,1759240303654,-500.0,0.00019726,2]
[388554463,1759240303664,-500.0,0.00019726,2]
[388554464,1759240303673,-984.15,0.00019726,2]
[388554465,1759240303682,-500.0,0.00019726,2]
[388554466,1759240303692,-500.0,0.00019726,2]
[388554467,1759240303701,-500.0,0.00019726,2]
[388554468,1759240303711,-151.0,0.00019726,2]
[388554469,1759240303720,-151.0,0.00019726,2]
[388554470,1759240303729,-500.0,0.00019726,2]
[388554471,1759240303738,-500.0,0.00019726,2]
[388554472,1759240303747,-500.0,0.00019726,2]
[388554473,1759240303756,-500.0,0.00019726,2]
[388554474,1759240303766,-500.0,0.00019726,2]
[388554475,1759240303775,-500.0,0.00019726,2]
[388554476,1759240303784,-500.0,0.00019726,2]
[388554477,1759240303794,-500.0,0.00019726,2]
[388554478,1759240303803,-500.0,0.00019726,2]
[388554479,1759240303814,-500.0,0.00019726,2]
[388554480,1759240303823,-500.0,0.00019726,2]
[388554481,1759240303832,-500.0,0.00019726,2]
[388554482,1759240303843,-500.0,0.00019726,2]
[388554483,1759240303852,-500.0,0.00019726,2]
[388554484,1759240303861,-500.0,0.00019726,2]
[388554485,1759240303870,-500.0,0.00019726,2]
[388554486,1759240303880,-1977.24,0.00019726,2]
[388554487,1759240303889,-500.0,0.00019726,2]
[388554488,1759240303899,-500.0,0.00019726,2]
[388554489,1759240303909,-500.0,0.00019726,2]
[388554490,1759240303920,-517.59,0.00019726,2]
[388554491,1759240303930,-2503.43,0.00019726,2]
[388554492,1759240303939,-500.0,0.00019726,2]
[388554493,1759240303949,-1137.08,0.00019726,2]
[388554494,1759240303957,-1760.32,0.00019726,2]
[388554495,1759240303967,-500.0,0.00019726,2]
[388554496,1759240303976,-2399.12,0.00019726,2]
[388554497,1759240303985,-751.48,0.00019726,2]
[388554498,1759240303994,-626.59,0.00019726,2]
[388554499,1759240304004,-500.0,0.00019726,2]
[388554500,1759240304013,-906.34,0.00019726,2]
[388554501,1759240304022,-1693.84,0.00019726,2]
[388554502,1759240304031,-900.53,0.00019726,2]
[388554503,1759240304041,-853.5,0.00019726,2]
[388554504,1759240304050,-500.0,0.00019726,2]
[388554505,1759240304059,-500.0,0.00019726,2]
[388554506,1759240304070,-500.0,0.00019726,2]
[388554507,1759240304079,-2800.4,0.00019726,2]
[388554508,1759240304088,-3710.9,0.00019726,2]
[388554509,1759240304097,-500.0,0.00019726,2]
[388554510,1759240304107,-500.0,0.00019726,2]
[388554511,1759240304116,-500.0,0.00019726,2]
[388554512,1759240304126,-500.0,0.00019726,2]
[388554513,1759240304135,-780.07,0.00019726,2]
[388554514,1759240304144,-792.06,0.00019726,2]
[388554515,1759240304154,-1076.9,0.00019726,2]
[388554516,1759240304164,-1334.02,0.00019726,2]
[388554517,1759240304173,-1098.61,0.00019726,2]
[388554518,1759240304183,-500.0,0.00019726,2]
[388554519,1759240304192,-544.22,0.00019726,2]
[388554520,1759240304202,-500.0,0.00019726,2]
[388554521,1759240304212,-500.0,0.00019726,2]
[388554522,1759240304221,-714.53,0.00019726,2]
[388554523,1759240304234,-3350.21,0.00019726,2]
[388554524,1759240304243,-500.0,0.00019726,2]
[388554525,1759240304254,-500.0,0.00019726,2]
[388554526,1759240304264,-500.0,0.00019726,2]
[388554527,1759240304274,-705.59,0.00019726,2]
[388554528,1759240304284,-840.44,0.00019726,2]
[388554529,1759240304294,-1195.98,0.00019726,2]
[388554530,1759240304304,-2690.42,0.00019726,2]
[388554531,1759240304316,-571.65,0.00019726,2]
[388554532,1759240304326,-432.78182305,0.00019726,2]
[388554533,1759240304335,-500.0,0.00019726,2]
[388554534,1759240304344,-500.0,0.00019726,2]
[388554535,1759240304354,-500.0,0.00019726,2]
[388554536,1759240304365,-500.0,0.00019726,2]
[388554537,1759240304469,-500.0,0.00019726,2]
[388554538,1759240304502,-151.575418,0.00019726,2]
[388554539,1759240304540,-500.0,0.00019726,2]
[388554540,1759240304551,-500.0,0.00019726,2]
[388554541,1759240304562,-1726.29,0.00019726,2]
[388554542,1759240304574,-500.0,0.00019726,2]
[388554543,1759240304585,-500.0,0.00019726,2]
[388554544,1759240304595,-500.0,0.00019726,2]
[388554545,1759240304605,-5086.08,0.00019726,2]
[388554546,1759240304616,-500.0,0.00019726,2]
[388554547,1759240304626,-500.0,0.00019726,2]
[388554548,1759240304636,-500.0,0.00019726,2]
[388554549,1759240304646,-500.0,0.00019726,2]
[388554550,1759240304656,-500.0,0.00019726,2]
[388554551,1759240304666,-4456.96,0.00019726,2]
[388554552,1759240304676,-500.0,0.00019726,2]
[388554553,1759240304686,-621.6,0.00019726,2]
[388554554,1759240304696,-500.0,0.00019726,2]
[388554555,1759240304706,-5163.16,0.00019726,2]
[388554556,1759240304716,-500.0,0.00019726,2]
[388554557,1759240304725,-500.0,0.00019726,2]
[388554558,1759240304735,-500.0,0.00019726,2]
[388554559,1759240304745,-500.0,0.00019726,2]
[388554560,1759240304755,-1240.5,0.00019726,2]
[388554561,1759240304765,-1599.6,0.00019726,2]
[388554562,1759240304774,-5656.93,0.00019726,2]
[388554563,1759240304784,-500.0,0.00019726,2]
[388554564,1759240304794,-1771.49,0.00019726,2]
[388554565,1759240304804,-571.61,0.00019726,2]
[388554566,1759240304815,-596.77,0.00019726,2]
[388554567,1759240304826,-500.0,0.00019726,2]
[388554568,1759240304836,-3534.18,0.00019726,2]
[388554569,1759240304846,-500.0,0.00019726,2]
[388554570,1759240304856,-500.0,0.00019726,2]
[388554571,1759240304866,-500.0,0.00019726,2]
[388554572,1759240304877,-500.0,0.00019726,2]
[388554573,1759240304887,-683.71,0.00019726,2]
[388554574,1759240304897,-500.0,0.00019726,2]
[388554575,1759240304907,-500.0,0.00019726,2]
[388554576,1759240304922,-177.377123,0.00019726,2]
[388554577,1759240304932,-1725.05,0.00019726,2]
[388554578,1759240304943,-500.0,0.00019726,2]
[388554579,1759240304953,-177.377123,0.00019726,2]
[388554580,1759240304963,-2792.01,0.00019726,2]
[388554581,1759240304974,-500.0,0.00019726,2]
[388554582,1759240304984,-1784.28,0.00019726,2]
[388554583,1759240304994,-177.377123,0.00019726,2]
[388554584,1759240305004,-500.0,0.00019726,2]
[388554585,1759240305013,-773.33,0.00019726,2]
[388554586,1759240305023,-177.377127,0.00019726,2]
[388554587,1759240305034,-1417.17,0.00019726,2]
[388554588,1759240305044,-500.0,0.00019726,2]
[388554589,1759240305054,-789.35,0.00019726,2]
[388554590,1759240305064,-500.0,0.00019726,2]
[388554591,1759240305075,-3388.02,0.00019726,2]
[388554592,1759240305085,-1267.03,0.00019726,2]
[388554593,1759240305095,-500.0,0.00019726,2]
[388554594,1759240305106,-586.61,0.00019726,2]
[388554595,1759240305116,-500.0,0.00019726,2]
[388554596,1759240305127,-982.97,0.00019726,2]
[388554597,1759240305137,-500.0,0.00019726,2]
[388554598,1759240305148,-500.0,0.00019726,2]
[388554599,1759240305158,-500.0,0.00019726,2]
[388554600,1759240305169,-2314.25,0.00019726,2]
[388554601,1759240305179,-500.0,0.00019726,2]
[388554602,1759240305190,-1218.74,0.00019726,2]
[388554603,1759240305200,-621.59,0.00019726,2]
[388554604,1759240305210,-500.0,0.00019726,2]
[388554605,1759240305220,-608.6,0.00019726,2]
[388554606,1759240305233,-2098.99,0.00019726,2]
[388554607,1759240305245,-500.0,0.00019726,2]
[388554608,1759240305256,-3224.35,0.00019726,2]
[388554609,1759240305266,-1286.78,0.00019726,2]